bitfinex/quotes_ETHUSD_20250808
["timestamp","ask_amount","ask_price","bid_price","bid_amount"]
[1754657867910,20.37969809,3899.3,3899.2,0.001]
[1754657869535,19.91309809,3899.3,3899.2,0.001]
[1754657869925,20.37969809,3899.3,3899.2,0.001]
[1754657870943,20.83899809,3899.3,3899.2,0.001]
[1754657871511,20.37969809,3899.3,3899.2,0.001]
[1754657871713,20.37969809,3899.3,3899.1,0.041]
[1754657871714,6.11462864,3899.2,3899.1,0.041]
[1754657871949,10.37056229,3899.2,3899.1,1e-08]
[1754657872437,19.94943646,3899.2,3899.1,1e-08]
[1754657873933,10.84286229,3899.2,3899.1,1e-08]
[1754657874242,13.80396229,3899.2,3899.1,1e-08]
[1754657874428,14.73046229,3899.2,3899.1,1e-08]
[1754657875033,14.81072518,3899.2,3899.1,1e-08]
[1754657876150,14.33722518,3899.2,3899.1,1e-08]
[1754657876347,13.73995118,3899.2,3899.1,1e-08]
[1754657876918,13.73995118,3899.2,3899.1,0.46020001]
[1754657878666,9.85295118,3899.2,3899.1,0.46020001]
[1754657878959,13.73995118,3899.2,3899.1,1e-08]
[1754657879165,14.19295118,3899.2,3899.1,1e-08]
[1754657880652,13.73995118,3899.2,3899.1,1e-08]
[1754657880954,14.19295118,3899.2,3899.1,1e-08]
[1754657883803,4.66502969,3899.2,3899.1,0.46020001]
[1754657884074,7.79576996,3899.2,3899.1,0.90890001]
[1754657884279,8.32019436,3899.2,3899.1,0.90890001]
[1754657885979,8.32019436,3899.2,3899.1,0.46020001]
[1754657886995,8.32019436,3899.2,3899.1,0.90890001]
[1754657887947,4.43319436,3899.2,3899.1,0.90890001]
[1754657888467,8.32019436,3899.2,3899.1,0.90890001]
[1754657889769,7.63210692,3899.2,3899.1,0.90890001]
[1754657890694,7.63209747,3899.2,3899.1,0.90890001]
[1754657891358,8.3199554,3899.2,3899.1,0.90890001]
[1754657891559,7.63209747,3899.2,3899.1,0.90890001]
[1754657891880,8.31993872,3899.2,3899.1,0.90890001]
[1754657892261,8.31893872,3899.2,3899.1,0.90890001]
[1754657893979,8.44693872,3899.2,3899.1,0.90890001]
[1754657894749,7.75909747,3899.2,3899.1,0.90890001]
[1754657896777,7.75899213,3899.2,3899.1,0.90890001]
[1754657897087,7.75898805,3899.2,3899.1,0.90890001]
[1754657897452,7.75898802,3899.2,3899.1,0.90890001]
[1754657902084,7.75898802,3899.2,3899.1,0.46020001]
[1754657903172,7.75898908,3899.2,3899.1,0.46020001]
[1754657903977,7.75875331,3899.2,3899.1,0.46020001]
[1754657904668,7.75875331,3899.2,3899.1,1e-08]
[1754657904872,7.75875331,3899.2,3899.1,0.47630001]
[1754657906596,3.87275331,3899.2,3899.1,0.47630001]
[1754657906890,7.75875331,3899.2,3899.1,0.47630001]
[1754657909693,3.87275331,3899.2,3899.1,0.47630001]
[1754657910002,7.75875331,3899.2,3899.1,0.47630001]
[1754657910610,9.52173921,3899.2,3899.1,1e-08]
[1754657910814,9.97893921,3899.2,3899.1,1e-08]
[1754657910969,10.66628206,3899.2,3899.1,1e-08]
[1754657911166,11.31057304,3899.2,3899.1,1e-08]
[1754657911412,11.54108972,3899.2,3899.1,1e-08]
[1754657911715,11.62134747,3899.2,3899.1,1e-08]
[1754657912298,7.23534747,3899.2,3899.1,1e-08]
[1754657912472,9.74677887,3899.2,3899.1,1e-08]
[1754657912675,9.66652112,3899.2,3899.1,1e-08]
[1754657912881,9.66652112,3899.2,3899.1,0.47630001]
[1754657913476,9.66652112,3899.2,3899.1,0.91430001]
[1754657914090,9.66652112,3899.2,3899.1,0.47630001]
[1754657916081,9.66652112,3899.2,3899.1,1e-08]
[1754657916484,11.54108972,3899.2,3899.1,1e-08]
[1754657918604,11.46083933,3899.2,3899.1,1e-08]
[1754657918911,11.54109698,3899.2,3899.1,1e-08]
[1754657919717,11.04109698,3899.2,3899.1,1e-08]
[1754657920395,7.15509698,3899.2,3899.1,1e-08]
[1754657920601,10.439606,3899.2,3899.1,0.47630001]
[1754657920998,10.58391788,3899.2,3899.1,0.47630001]
[1754657921197,10.439606,3899.2,3899.1,0.47630001]
[1754657921504,10.439606,3899.2,3899.1,1e-08]
[1754657922389,10.896806,3899.2,3899.1,1e-08]
[1754657924312,11.54109382,3899.2,3899.1,1e-08]
[1754657925417,11.04109382,3899.2,3899.1,1e-08]
[1754657925624,11.54109382,3899.2,3899.1,1e-08]
[1754657925823,11.64388882,3899.2,3899.1,1e-08]
[1754657926025,10.72652022,3899.2,3899.1,1e-08]
[1754657926226,11.64359272,3899.2,3899.1,1e-08]
[1754657926424,11.14359272,3899.2,3899.1,1e-08]
[1754657927943,11.64359272,3899.2,3899.1,1e-08]
[1754657928230,10.72652022,3899.2,3899.1,1e-08]
[1754657928435,11.72581966,3899.2,3899.1,1e-08]
[1754657928733,10.8087785,3899.2,3899.1,1e-08]
[1754657930504,10.3087785,3899.2,3899.1,1e-08]
[1754657931822,10.16449068,3899.2,3899.1,1e-08]
[1754657932220,9.70629068,3899.2,3899.1,1e-08]
[1754657932530,9.70629068,3899.2,3899.1,0.47630001]
[1754657932914,9.70629068,3899.2,3899.1,1e-08]
[1754657933734,9.60349568,3899.2,3899.1,1e-08]
[1754657933899,10.5205444,3899.2,3899.1,0.47630001]
[1754657937343,10.52054451,3899.2,3899.1,0.47630001]
[1754657939111,10.52054451,3899.2,3899.1,1e-08]
[1754657939918,10.99684451,3899.2,3899.1,1e-08]
[1754657940118,10.07979579,3899.2,3899.1,1e-08]
[1754657940306,10.07979537,3899.2,3899.1,1e-08]
[1754657943648,10.07979537,3899.2,3899.1,0.92750001]
[1754657944246,10.07979537,3899.2,3899.1,0.46490001]
[1754657946244,6.19479537,3899.2,3899.1,0.46490001]
[1754657946547,6.19479537,3899.2,3899.1,0.92750001]
[1754657946548,10.99781875,3899.2,3899.1,0.92750001]
[1754657949354,9.99953756,3899.2,3899.1,0.92750001]
[1754657949548,10.07978884,3899.2,3899.1,0.92750001]
[1754657950561,10.99781222,3899.2,3899.1,0.92750001]
[1754657951056,10.07978884,3899.2,3899.1,0.92750001]
[1754657951351,10.99768378,3899.2,3899.1,0.92750001]
[1754657951749,9.23469788,3899.2,3899.1,1e-08]
[1754657951959,9.1544466,3899.2,3899.1,0.92750001]
[1754657952627,8.23655166,3899.2,3899.1,0.92750001]
[1754657953080,9.1544466,3899.2,3899.1,0.46490001]
[1754657953255,8.23655166,3899.2,3899.1,0.46490001]
[1754657957765,8.23654808,3899.2,3899.1,0.46490001]
[1754657958465,9.81219497,3899.2,3899.1,0.46490001]
[1754657959064,9.81219497,3899.2,3899.1,1e-08]
[1754657959360,11.66988991,3899.2,3899.1,1e-08]
[1754657959865,11.18078991,3899.2,3899.1,1e-08]
[1754657960164,10.26289497,3899.2,3899.1,1e-08]
[1754657960350,9.81219497,3899.2,3899.1,1e-08]
[1754657960577,9.81219497,3899.2,3899.1,0.46490001]
[1754657961045,9.81219497,3899.2,3899.1,1e-08]
[1754657961246,5.92719497,3899.2,3899.1,1e-08]
[1754657961446,9.81119497,3899.2,3899.1,1e-08]
[1754657961733,9.81119497,3899.2,3899.1,0.46490001]
[1754657961966,9.81119843,3899.2,3899.1,0.46490001]
[1754657963773,9.81119843,3899.2,3899.1,1e-08]
[1754657965937,9.95558455,3899.2,3899.1,1e-08]
[1754657966772,10.42228455,3899.2,3899.1,1e-08]
[1754657967774,19.52885872,3899.2,3899.1,1e-08]
[1754657967976,20.00565872,3899.2,3899.1,1e-08]
[1754657970157,19.52885872,3899.2,3899.1,1e-08]
[1754657970546,15.64485872,3899.2,3899.1,1e-08]
[1754657970749,19.52885872,3899.2,3899.1,1e-08]
[1754657970951,19.06215872,3899.2,3899.1,1e-08]
[1754657971148,20.00565872,3899.2,3899.1,1e-08]
[1754657971843,10.89908455,3899.2,3899.1,1e-08]
[1754657972044,10.42228455,3899.2,3899.1,1e-08]
[1754657973389,9.95558455,3899.2,3899.1,1e-08]
[1754657975175,9.95558455,3899.2,3899.1,0.47490001]
[1754657975347,6.07158455,3899.2,3899.1,0.47490001]
[1754657975548,9.95558455,3899.2,3899.1,0.47490001]
[1754657975754,9.95558455,3899.2,3899.1,0.93050001]
[1754657977094,6.07158455,3899.2,3899.1,0.47490001]
[1754657977398,8.23554847,3899.2,3899.1,0.93050001]
[1754657977541,9.15369468,3899.2,3899.1,0.93050001]
[1754657977745,9.15369468,3899.2,3899.1,0.47490001]
[1754657978177,8.60332947,3899.2,3899.1,0.47490001]
[1754657978494,9.15421309,3899.2,3899.1,0.47490001]
[1754657980885,9.15421309,3899.2,3899.1,0.93050001]
[1754657984183,8.23606688,3899.2,3899.1,0.93050001]
[1754657985282,8.23506688,3899.2,3899.1,0.93050001]
[1754657985479,4.35206688,3899.2,3899.1,0.93050001]
[1754657985682,8.23506688,3899.2,3899.1,0.93050001]
[1754657986990,8.23506688,3899.2,3899.1,0.47490001]
[1754657987287,4.35206688,3899.2,3899.1,0.47490001]
[1754657987463,8.23506688,3899.2,3899.1,0.47490001]
[1754657987669,8.23506688,3899.2,3899.1,0.93050001]
[1754657987985,8.23506688,3899.2,3899.1,0.47490001]
[1754657988177,8.23506688,3899.2,3899.1,0.93050001]
[1754657989390,4.35206688,3899.2,3899.1,0.93050001]
[1754657989888,8.23506688,3899.2,3899.1,0.93050001]
[1754657990757,8.23506688,3899.2,3899.1,0.47490001]
[1754657990962,8.23506688,3899.2,3899.1,0.93050001]
[1754657992262,7.75876688,3899.2,3899.1,0.93050001]
[1754657992981,7.75876688,3899.2,3899.1,0.47490001]
[1754657993605,8.70226688,3899.2,3899.1,1e-08]
[1754657993809,10.61404968,3899.2,3899.1,1e-08]
[1754657994379,10.71682968,3899.2,3899.1,1e-08]
[1754657994581,10.24002968,3899.2,3899.1,1e-08]
[1754657996408,9.77332968,3899.2,3899.1,1e-08]
[1754657996628,10.70982968,3899.2,3899.1,1e-08]
[1754657997895,10.85418074,3899.2,3899.1,1e-08]
[1754657998156,12.31179144,3899.2,3899.1,1e-08]
[1754657998806,15.31179144,3899.2,3899.1,1e-08]
[1754657999221,15.23153088,3899.2,3899.1,1e-08]
[1754657999395,13.85418074,3899.2,3899.1,1e-08]
[1754658000118,3.11482597,3898.9,3898.8,0.001]
[1754658000321,12.89966173,3898.9,3898.8,0.001]
[1754658000632,12.89966173,3898.9,3898.3,0.001]
[1754658000633,3.11515493,3898.4,3898.3,0.001]
[1754658000805,8.23597175,3898.4,3898.3,0.001]
[1754658001005,8.82627175,3898.4,3898.3,0.001]
[1754658001197,8.90653821,3898.4,3898.3,0.001]
[1754658001397,10.4493399,3898.4,3898.3,0.001]
[1754658001720,13.2356067,3898.4,3898.3,1e-08]
[1754658001934,14.15285096,3898.4,3898.3,1e-08]
[1754658002312,14.2548524,3898.4,3898.3,1e-08]
[1754658002516,8.66416271,3898.4,3898.3,1e-08]
[1754658002747,12.54616271,3898.4,3898.3,0.47540001]
[1754658003201,12.4019217,3898.4,3898.3,0.47540001]
[1754658003397,12.4019217,3898.4,3898.3,1e-08]
[1754658003601,9.43599371,3898.4,3898.3,0.47540001]
[1754658003836,4.74396508,3898.4,3898.3,0.92720001]
[1754658004134,0.86196508,3898.4,3898.3,0.92720001]
[1754658004334,4.53569862,3898.4,3898.3,0.92720001]
[1754658005037,0.65369862,3898.4,3898.3,0.92720001]
[1754658005201,3.985815,3898.4,3898.3,1.2932443]
[1754658005620,3.985815,3898.4,3898.3,0.92720001]
[1754658006442,0.102815,3898.4,3898.3,0.92720001]
[1754658006751,3.985815,3898.4,3898.3,0.92720001]
[1754658008699,6.55096993,3898.4,3898.3,0.92720001]
[1754658009100,3.985815,3898.4,3898.3,0.92720001]
[1754658009427,3.985815,3898.4,3898.3,1.29326054]
[1754658009619,3.883,3898.4,3898.3,1.29326054]
[1754658009933,3.883,3898.4,3898.3,1.42126054]
[1754658011497,3.883,3898.4,3898.3,3.98648127]
[1754658012137,3.883,3898.4,3898.3,1.42126054]
[1754658012311,1.3205818,3898.7,3898.4,2.5650917]
[1754658012312,0.77091,3898.7,3898.4,2.5650917]
[1754658012511,3.882,3898.6,3898.5,1.58235792]
[1754658012712,3.882,3898.6,3898.5,1.71035792]
[1754658013749,6.44702334,3898.6,3898.5,0.6034]
[1754658013951,3.882,3898.6,3898.5,0.6034]
[1754658014151,3.882,3898.6,3898.5,0.4754]
[1754658014310,3.882,3898.6,3898.5,0.9272]
[1754658015535,3.882,3898.6,3898.5,1.28924661]
[1754658016305,3.882,3898.6,3898.5,0.9272]
[1754658018726,3.882,3898.6,3898.5,3.49228913]
[1754658019453,3.882,3898.6,3898.5,3.49226471]
[1754658019939,1.32050126,3899.0,3898.6,2.56501681]
[1754658020116,0.77085,3899.0,3898.9,2.56482597]
[1754658020306,4.65285,3899.0,3898.9,5.13894669]
[1754658020511,3.882,3899.0,3898.9,5.13894669]
[1754658020811,3.882,3899.0,3898.9,2.57412072]
[1754658021014,6.163,3899.1,3898.9,2.57412072]
[1754658021209,0.002,3899.2,3899.0,1.23348198]
[1754658021410,0.002,3899.2,3899.0,4.27364217]
[1754658021727,3.882,3899.1,3899.0,3.79824217]
[1754658021933,3.882,3899.1,3899.0,3.92624217]
[1754658022311,3.882,3899.1,3899.0,4.85344217]
[1754658024160,3.882,3899.1,3899.0,2.28868198]
[1754658024447,0.4573,3899.1,3898.4,2.56514023]
[1754658024636,2.56477107,3899.0,3898.6,0.128]
[1754658024947,2.56489413,3898.8,3898.6,0.128]
[1754658025129,3.882,3898.7,3898.6,0.128]
[1754658026016,3.882,3898.7,3898.6,0.6093]
[1754658026847,3.882,3898.7,3898.6,1.0506]
[1754658027047,1.389133,3899.2,3898.6,1.41216816]
[1754658027048,0.772833,3899.2,3898.6,1.41216816]
[1754658027254,3.881,3899.1,3898.7,0.4813]
[1754658027557,0.002,3899.2,3898.8,1.0506]
[1754658027717,0.002,3899.2,3898.8,3.48747683]
[1754658027718,3.881,3899.0,3898.8,3.48747683]
[1754658027919,3.881,3899.0,3898.9,5.03948911]
[1754658028118,3.881,3899.0,3898.9,5.16748911]
[1754658028713,0.002,3899.2,3898.9,5.16748911]
[1754658028917,3.881,3899.1,3899.0,0.9226]
[1754658029318,3.881,3899.1,3899.0,1.0506]
[1754658029937,0.002,3899.2,3899.0,1.0506]
[1754658030121,0.002,3899.2,3899.1,0.9226]
[1754658030648,0.002,3899.2,3899.1,0.4813]
[1754658030846,3.883,3899.2,3899.1,0.9226]
[1754658031552,0.002,3899.2,3899.1,0.9226]
[1754658031933,3.883,3899.2,3899.1,0.4813]
[1754658032566,0.002,3899.2,3899.1,3.04599441]
[1754658032771,3.883,3899.2,3899.1,3.48729441]
[1754658034273,3.883,3899.2,3899.1,0.9226]
[1754658035054,3.883,3899.2,3899.1,3.48729441]
[1754658035275,3.883,3899.2,3899.1,4.26052344]
[1754658038439,0.002,3899.2,3899.1,4.26052344]
[1754658038837,3.883,3899.2,3899.1,4.38852344]
[1754658039351,0.002,3899.2,3899.1,4.38852344]
[1754658039555,3.883,3899.2,3899.1,4.38852344]
[1754658040273,0.002,3899.2,3899.1,4.38852344]
[1754658040477,3.883,3899.2,3899.1,4.38852344]
[1754658041873,0.002,3899.2,3899.1,4.38852344]
[1754658042049,0.002,3899.2,3899.1,7.41417038]
[1754658042242,0.002,3899.2,3899.1,11.67852344]
[1754658042445,1e-08,3899.2,3899.1,11.67852344]
[1754658045992,1e-08,3899.2,3899.1,12.44901544]
[1754658047068,0.002,3899.6,3899.5,2.56443133]
[1754658047264,0.002,3899.6,3899.5,12.09811603]
[1754658047451,0.002,3899.6,3899.5,13.14871603]
[1754658047680,0.002,3899.8,3899.7,2.56429981]
[1754658047996,0.002,3899.8,3899.7,3.61489981]
[1754658048318,0.002,3899.8,3899.7,6.61489981]
[1754658048614,0.002,3899.8,3899.7,8.16696295]
[1754658050765,0.002,3899.9,3899.8,2.56423406]
[1754658050980,0.002,3900.3,3899.9,5.56416831]
[1754658051181,0.002,3900.3,3899.9,10.36676831]
[1754658051381,0.002,3900.3,3899.9,10.49476831]
[1754658051582,0.002,3900.3,3899.9,11.26799734]
[1754658051767,0.002,3900.3,3899.9,3.90122903]
[1754658051969,4.8276,3900.0,3899.9,0.90122903]
[1754658052169,4.8276,3900.0,3899.9,0.128]
[1754658052584,3.882,3900.0,3899.9,12.23457417]
[1754658052893,0.002,3900.0,3899.9,15.28004248]
[1754658053798,0.002,3900.0,3899.9,14.79874248]
[1754658054002,0.002,3900.0,3899.9,12.23457417]
[1754658054361,0.453,3900.0,3899.9,12.23457417]
[1754658054786,0.9268,3900.0,3899.9,0.128]
[1754658056382,3.49090256,3900.0,3899.9,0.128]
[1754658058794,0.9268,3900.0,3899.9,0.128]
[1754658059115,3.49090256,3900.0,3899.9,0.128]
[1754658059492,5.02797992,3900.0,3899.9,0.128]
[1754658059680,5.02797992,3900.0,3898.9,3.4811]
[1754658059681,2.56431752,3899.7,3899.5,0.128]
[1754658059881,6.44436557,3899.6,3899.5,0.128]
[1754658060088,2.56443133,3899.5,3899.3,0.128]
[1754658060423,2.56470299,3899.1,3898.5,0.4811]
[1754658060602,3.88,3899.0,3898.5,0.4811]
[1754658060805,3.88,3899.0,3898.6,0.39222]
[1754658061006,3.88,3899.0,3898.9,0.128]
[1754658061510,4.331,3899.0,3898.9,0.128]
[1754658064689,3.88,3899.0,3898.9,0.128]
[1754658065311,3.88,3899.0,3898.9,2.69282597]
[1754658065624,3.88,3899.0,3898.9,2.28413145]
[1754658066220,3.88,3899.0,3898.9,4.84895742]
[1754658066394,3.88,3899.0,3898.9,13.34440161]
[1754658066798,3.88,3899.0,3898.9,15.46812758]
[1754658066991,3.88,3899.0,3898.9,19.75812758]
[1754658067210,3.88,3899.0,3898.9,17.19330161]
[1754658067415,3.88,3899.0,3898.9,6.09303145]
[1754658067616,4.331,3899.0,3898.9,6.09303145]
[1754658068002,3.88,3899.0,3898.9,6.09303145]
[1754658068702,3.87864065,3899.0,3898.9,6.09303145]
[1754658070922,3.87864065,3899.0,3898.9,8.65785742]
[1754658071126,3.87864065,3899.0,3898.9,6.57413145]
[1754658072323,3.87864065,3899.0,3898.9,9.13895742]
[1754658072822,3.87864065,3899.0,3898.9,4.84895742]
[1754658073323,3.87864065,3899.0,3898.9,15.90922758]
[1754658076637,3.87864065,3899.0,3898.9,15.46812758]
[1754658077893,3.87864065,3899.0,3898.9,4.36785742]
[1754658078731,3.87864065,3899.0,3898.9,9.13895742]
[1754658079226,3.11423843,3899.8,3899.2,2.56462864]
[1754658079393,0.451,3899.6,3899.4,0.128]
[1754658079829,0.451,3899.5,3899.4,0.128]
[1754658079988,0.9248,3899.5,3899.4,0.128]
[1754658080424,0.451,3899.5,3899.4,2.6924971]
[1754658080627,0.451,3899.5,3899.4,0.128]
[1754658080931,3.88,3899.5,3899.4,2.69243579]
[1754658081097,3.88,3899.5,3899.4,2.56443579]
[1754658081292,3.88,3899.5,3899.4,2.69243579]
[1754658081907,3.88,3899.5,3899.4,0.128]
[1754658082108,3.88,3899.5,3899.4,3.1735971]
[1754658082313,3.88,3899.5,3899.4,2.6924971]
[1754658082931,3.88,3899.5,3899.4,0.128]
[1754658083136,4.8048,3899.5,3899.4,0.128]
[1754658083308,4.8048,3899.5,3899.4,2.6924971]
[1754658084529,4.331,3899.5,3899.4,2.6924971]
[1754658085732,0.451,3899.5,3899.4,2.6924971]
[1754658085934,4.331,3899.5,3899.4,2.6924971]
[1754658086246,3.88,3899.5,3899.4,2.6924971]
[1754658087032,4.3512,3899.5,3899.4,2.6924971]
[1754658088212,3.88,3899.5,3899.4,2.6924971]
[1754658089294,4.3512,3899.5,3899.4,2.6924971]
[1754658089899,3.88,3899.5,3899.4,2.6924971]
[1754658090119,3.88,3899.5,3899.4,3.69365905]
[1754658090320,3.88,3899.5,3899.4,3.1569971]
[1754658093739,3.88,3899.5,3899.4,14.23856726]
[1754658093901,3.88,3899.5,3899.4,3.6193971]
[1754658094107,3.88,3899.5,3899.4,3.1569971]
[1754658095038,3.88,3899.5,3899.4,3.6193971]
[1754658095222,3.88,3899.5,3899.4,5.73128016]
[1754658096310,3.88,3899.5,3899.4,3.6193971]
[1754658096713,3.88,3899.5,3899.4,3.1569971]
[1754658097126,3.88,3899.5,3899.4,3.6193971]
[1754658098743,3.88,3899.5,3899.4,0.128]
[1754658098948,4.8074,3899.5,3899.4,0.128]
[1754658099827,4.8074,3899.5,3899.4,2.6924971]
[1754658100143,4.3512,3899.5,3899.4,2.6924971]
[1754658100718,3.88,3899.5,3899.4,2.6924971]
[1754658101142,3.88,3899.5,3899.4,3.1569971]
[1754658102733,3.88,3899.5,3899.4,2.6924971]
[1754658102956,3.882,3899.5,3899.4,0.128]
[1754658103142,4.3532,3899.5,3899.4,0.128]
[1754658103451,0.9294,3899.5,3899.4,0.128]
[1754658103746,3.882,3899.5,3899.4,3.1569971]
[1754658105444,3.882,3899.5,3899.4,2.6924971]
[1754658105645,3.882,3899.5,3899.4,3.1569971]
[1754658105844,3.882,3899.5,3899.4,3.6193971]
[1754658106050,3.882,3899.5,3899.4,3.1569971]
[1754658108923,0.002,3899.5,3899.4,3.1569971]
[1754658109157,3.882,3899.5,3899.4,4.26343918]
[1754658110319,0.002,3899.5,3899.4,14.85696437]
[1754658110519,3.881,3899.5,3899.4,14.85696437]
[1754658111964,3.881,3899.5,3899.4,17.85696437]
[1754658113763,3.881,3899.5,3899.4,22.14696437]
[1754658114350,3.881,3899.5,3899.4,17.85696437]
[1754658116250,0.002,3899.5,3899.4,22.14696437]
[1754658116441,0.002,3899.9,3899.8,2.56423406]
[1754658116442,3.881,3899.9,3899.8,2.56423406]
[1754658116761,3.881,3899.9,3899.8,14.71305884]
[1754658116937,3.881,3899.9,3899.8,17.71305884]
[1754658117137,0.002,3899.9,3899.8,17.71305884]
[1754658121936,0.002,3899.9,3899.8,6.20508868]
[1754658122251,0.4567,3899.9,3899.8,6.20508868]
[1754658122770,0.002,3899.9,3899.8,6.20508868]
[1754658123477,0.002,3899.9,3899.8,6.66298868]
[1754658123930,0.002,3899.9,3899.8,7.09388868]
[1754658127736,0.002,3900.0,3899.9,5.56416831]
[1754658127737,1e-08,3900.0,3899.9,5.56416831]
[1754658127931,1e-08,3900.0,3899.9,17.80448944]
[1754658128159,1e-08,3900.0,3899.9,18.69328944]
[1754658129360,1e-08,3900.0,3899.9,22.98328944]
[1754658134842,1e-08,3900.0,3899.9,22.55238944]
[1754658135240,1e-08,3900.0,3899.9,22.98328944]
[1754658135442,1e-08,3900.0,3899.9,11.47531928]
[1754658135645,1e-08,3900.0,3899.9,22.09448944]
[1754658135868,1e-08,3900.0,3899.9,8.47531928]
[1754658136067,0.93940001,3900.0,3899.9,8.47531928]
[1754658136275,0.93940001,3900.0,3899.9,11.47531928]
[1754658138744,0.45470001,3900.0,3899.9,22.09448944]
[1754658146272,1e-08,3900.0,3899.9,22.09448944]
[1754658147016,1e-08,3900.0,3899.9,22.58338944]
[1754658147604,1e-08,3900.0,3899.9,22.09448944]
[1754658149606,1e-08,3900.0,3899.9,22.58338944]
[1754658151182,1e-08,3900.0,3899.9,22.09448944]
[1754658151794,0.44090001,3900.0,3899.9,22.09448944]
[1754658152718,1e-08,3900.0,3899.9,22.09448944]
[1754658154194,1e-08,3900.0,3899.9,11.47531928]
[1754658154820,0.44090001,3900.0,3899.9,11.47531928]
[1754658156623,1e-08,3900.0,3899.9,11.47531928]
[1754658157591,1e-08,3900.0,3899.9,11.96421928]
[1754658158715,1e-08,3900.0,3899.9,11.47531928]
[1754658159022,1e-08,3900.0,3899.9,11.96421928]
[1754658161035,1e-08,3900.0,3899.9,11.47531928]
[1754658161211,1e-08,3900.0,3899.9,11.96421928]
[1754658161933,1e-08,3900.0,3899.9,12.41631928]
[1754658162434,1e-08,3900.0,3899.9,11.96421928]
[1754658165616,1e-08,3900.0,3899.9,12.41631928]
[1754658167434,1e-08,3900.0,3899.9,11.96421928]
[1754658167803,1e-08,3900.0,3899.9,12.41631928]
[1754658168536,1e-08,3900.0,3899.9,12.41731928]
[1754658172809,1e-08,3900.0,3899.9,11.96521928]
[1754658173210,1e-08,3900.0,3899.9,12.41731928]
[1754658174440,1e-08,3900.0,3899.9,11.96521928]
[1754658175240,1e-08,3900.0,3899.9,11.47631928]
[1754658175415,1e-08,3900.0,3899.9,22.09548944]
[1754658175621,0.44000001,3900.0,3899.9,22.09548944]
[1754658175917,1e-08,3900.0,3899.9,22.58868944]
[1754658176445,1e-08,3900.0,3899.9,23.03998944]
[1754658177639,1e-08,3900.0,3899.9,22.58868944]
[1754658181350,1e-08,3900.0,3899.9,23.03998944]
[1754658182535,1e-08,3900.0,3899.9,22.58868944]
[1754658182742,1e-08,3900.0,3899.9,18.29868944]
[1754658185557,1e-08,3900.0,3899.9,18.74998944]
[1754658185752,1e-08,3900.0,3899.9,18.29868944]
[1754658188669,1e-08,3900.0,3899.9,25.36275096]
[1754658188966,1e-08,3900.0,3899.9,25.81405096]
[1754658189867,1e-08,3900.0,3899.9,25.36275096]
[1754658190545,1e-08,3900.0,3899.9,25.81405096]
[1754658191569,1e-08,3900.0,3899.9,11.40678415]
[1754658191739,0.44000001,3900.0,3899.9,11.40678415]
[1754658192066,1e-08,3900.0,3899.9,11.40678415]
[1754658192233,1e-08,3900.0,3899.9,11.89998415]
[1754658194634,1e-08,3900.0,3899.9,20.74159999]
[1754658195036,1e-08,3900.0,3899.9,11.89998415]
[1754658197138,1e-08,3900.0,3899.9,16.18998415]
[1754658200674,1e-08,3900.0,3899.9,18.69678415]
[1754658200842,1e-08,3900.0,3899.9,19.64128415]
[1754658201043,1e-08,3900.0,3899.9,28.48289999]
[1754658201774,1e-08,3900.0,3899.9,19.18998415]
[1754658215785,3.87500001,3900.0,3899.9,19.18998415]
[1754658218408,1e-08,3900.0,3899.9,19.18998415]
[1754658218554,3.87500001,3900.0,3899.9,19.18998415]
[1754658219394,1e-08,3900.0,3899.9,19.18998415]
[1754658219752,3.87500001,3900.0,3899.9,19.18998415]
[1754658219878,3.87500001,3900.0,3899.9,21.68139719]
[1754658220897,3.87500001,3900.0,3899.9,21.93809719]
[1754658221076,3.87500001,3900.0,3899.9,21.68139719]
[1754658223976,1e-08,3900.0,3899.9,21.68139719]
[1754658224294,3.87500001,3900.0,3899.9,21.68139719]
[1754658225395,1e-08,3900.0,3899.9,21.68139719]
[1754658225597,3.87500001,3900.0,3899.9,21.68139719]
[1754658227275,3.87500001,3900.0,3899.9,22.14899719]
[1754658227793,1e-08,3900.0,3899.9,22.14899719]
[1754658228094,3.87400001,3900.0,3899.9,22.14899719]
[1754658228512,1e-08,3900.0,3899.9,21.68139719]
[1754658228795,1e-08,3900.0,3899.9,30.99061303]
[1754658229565,1e-08,3900.0,3899.9,22.14899719]
[1754658232310,1e-08,3900.0,3899.9,12.34658135]
[1754658232509,0.47140001,3900.0,3899.9,9.85516831]
[1754658232711,0.92970001,3900.0,3899.9,9.85516831]
[1754658232875,0.92970001,3900.0,3899.9,6.85516831]
[1754658235499,0.92970001,3900.0,3899.9,2.56516831]
[1754658237130,1e-08,3900.0,3899.9,6.85516831]
[1754658237433,3.87400001,3900.0,3899.9,9.44620943]
[1754658237723,3.87400001,3900.0,3899.9,7.44276831]
[1754658238027,3.87400001,3900.0,3899.9,6.98316831]
[1754658240997,3.87400001,3900.0,3899.9,10.44276831]
[1754658243019,3.87400001,3900.0,3899.9,9.98316831]
[1754658243195,4.31760001,3900.0,3899.9,6.98316831]
[1754658243389,4.77150001,3900.0,3899.9,6.98316831]
[1754658244518,4.77150001,3900.0,3899.9,2.69316831]
[1754658245015,4.31760001,3900.0,3899.9,2.69316831]
[1754658245220,1e-08,3900.0,3899.9,2.69316831]
[1754658245514,3.87400001,3900.0,3899.9,3.15276831]
[1754658248622,3.87400001,3900.0,3899.9,3.60686831]
[1754658249619,3.87400001,3900.0,3899.9,3.15276831]
[1754658250320,3.87400001,3900.0,3899.9,7.44276831]
[1754658253118,3.87400001,3900.0,3899.9,6.98316831]
[1754658253893,4.77150001,3900.0,3899.9,6.98316831]
[1754658254833,4.31760001,3900.0,3899.9,0.129]
[1754658257526,8.49095257,3900.0,3899.9,0.001]
[1754658258934,4.61695257,3900.0,3899.9,0.001]
[1754658259135,8.49095257,3900.0,3899.9,0.001]
[1754658260637,14.65095257,3900.0,3899.9,0.001]
[1754658268147,17.65095257,3900.0,3899.9,0.001]
[1754658279476,12.87945257,3900.0,3899.9,0.001]
[1754658279645,16.75345257,3900.0,3899.9,0.001]
[1754658280046,12.87945257,3900.0,3899.9,0.001]
[1754658280360,16.75345257,3900.0,3899.9,0.001]